bitfinex-derivatives/quotes_BTCF0:USTF0_20241227
["timestamp","ask_amount","ask_price","bid_price","bid_amount"]
[1735266035842,0.001,96362.0,96359.0,0.30814157]
[1735266036845,0.001,96362.0,96358.0,0.26281328]
[1735266037145,0.051968,96363.0,96358.0,0.26381328]
[1735266037443,0.051968,96363.0,96359.0,0.001]
[1735266037642,0.051969,96361.0,96359.0,0.002]
[1735266038249,0.051969,96361.0,96359.0,0.001]
[1735266039841,0.051969,96361.0,96359.0,0.002]
[1735266041855,0.07541276,96380.0,96359.0,0.002]
[1735266042034,0.051965,96369.0,96359.0,0.002]
[1735266042845,0.051965,96368.0,96359.0,0.002]
[1735266043643,0.051965,96368.0,96359.0,0.001]
[1735266043844,0.051965,96368.0,96359.0,0.002]
[1735266044151,0.051966,96367.0,96359.0,0.002]
[1735266045147,0.051966,96366.0,96359.0,0.001]
[1735266045342,0.051966,96366.0,96359.0,0.002]
[1735266045543,0.051966,96366.0,96359.0,0.001]
[1735266045742,0.051967,96365.0,96359.0,0.002]
[1735266046735,0.051967,96364.0,96359.0,0.002]
[1735266047541,0.2393,96382.0,96359.0,0.002]
[1735266047741,0.33276291,96382.0,96360.0,0.07541276]
[1735266048452,0.051959,96379.0,96360.0,0.07541276]
[1735266048950,0.05196,96378.0,96361.0,0.04053091]
[1735266049150,0.05196,96377.0,96364.0,0.30814157]
[1735266049358,0.05196,96377.0,96365.0,0.2429]
[1735266049538,0.05196,96377.0,96365.0,0.28343091]
[1735266049736,0.05196,96377.0,96366.0,0.2355]
[1735266049937,0.051961,96376.0,96366.0,0.27603091]
[1735266050244,0.051961,96376.0,96366.0,0.2355]
[1735266050449,0.051961,96376.0,96370.0,0.30814157]
[1735266050651,0.051961,96376.0,96371.0,0.2531]
[1735266051052,0.052961,96376.0,96371.0,0.2531]
[1735266051550,0.051963,96373.0,96371.0,0.2531]
[1735266051742,0.051963,96373.0,96368.0,0.30814157]
[1735266051949,0.051964,96370.0,96368.0,0.30814157]
[1735266053350,0.053964,96370.0,96366.0,0.2355]
[1735266054156,0.053964,96370.0,96366.0,0.24788722]
[1735266054455,0.052964,96370.0,96366.0,0.24788722]
[1735266057356,0.001,96370.0,96366.0,0.24788722]
[1735266063346,0.051965,96368.0,96366.0,0.38305279]
[1735266063550,0.051965,96368.0,96366.0,0.37066557]
[1735266063751,0.2438,96367.0,96366.0,0.37066557]
[1735266064755,0.2438,96367.0,96366.0,0.24621243]
[1735266064963,0.295766,96367.0,96366.0,0.24621243]
[1735266066165,0.295766,96367.0,96362.0,0.25830962]
[1735266066166,0.051968,96363.0,96362.0,0.25830962]
[1735266066364,0.051968,96363.0,96362.0,0.24621243]
[1735266067257,0.051968,96363.0,96362.0,0.24721243]
[1735266067459,0.051968,96363.0,96362.0,0.001]
[1735266067766,0.051968,96363.0,96362.0,0.002]
[1735266071163,0.051968,96363.0,96362.0,0.24821243]
[1735266072365,0.051968,96363.0,96362.0,0.002]
[1735266075269,0.051968,96363.0,96362.0,0.0129129]
[1735266075468,0.051968,96363.0,96362.0,0.002]
[1735266080877,0.051968,96363.0,96362.0,0.01390347]
[1735266085377,0.09346291,96382.0,96362.0,0.01390347]
[1735266085584,0.09346291,96382.0,96363.0,0.7354]
[1735266085788,0.051962,96374.0,96363.0,0.7354]
[1735266085987,0.051962,96374.0,96364.0,0.04076606]
[1735266086293,0.09346291,96382.0,96364.0,0.04076606]
[1735266086587,0.051963,96373.0,96365.0,0.04076606]
[1735266086787,0.051963,96373.0,96363.0,0.73592]
[1735266086788,0.051963,96373.0,96366.0,0.04071122]
[1735266086984,0.051963,96373.0,96363.0,0.73592]
[1735266086985,0.051963,96373.0,96368.0,0.37066557]
[1735266087385,0.051964,96370.0,96368.0,0.37066557]
[1735266088388,0.051964,96370.0,96369.0,0.37066557]
[1735266088989,0.053964,96370.0,96369.0,0.37066557]
[1735266089687,0.054964,96370.0,96369.0,0.37066557]
[1735266090175,0.055964,96370.0,96369.0,0.37066557]
[1735266090981,0.036884,96370.0,96369.0,0.37066557]
[1735266092701,0.004,96370.0,96369.0,0.37066557]
[1735266093698,0.00155783,96385.0,96369.0,0.37066557]
[1735266093992,0.051958,96381.0,96375.0,0.07541276]
[1735266094197,0.00155783,96385.0,96375.0,0.07541276]
[1735266094384,0.00155783,96385.0,96369.0,0.21637811]
[1735266094692,0.051962,96375.0,96369.0,0.21637811]
[1735266095093,0.051962,96374.0,96369.0,0.21637811]
[1735266095998,0.051962,96374.0,96369.0,0.003]
[1735266096896,0.051962,96374.0,96369.0,0.005]
[1735266099492,0.051962,96374.0,96369.0,0.37422054]
[1735266100593,0.051962,96374.0,96369.0,0.005]
[1735266102007,0.051962,96374.0,96370.0,0.36922054]
[1735266102390,0.051962,96374.0,96371.0,0.04083745]
[1735266102704,0.051962,96374.0,96372.0,0.04083745]
[1735266103003,0.09346291,96395.0,96373.0,0.04083745]
[1735266103297,0.051959,96381.0,96373.0,0.04083745]
[1735266103495,0.051959,96381.0,96374.0,0.04083745]
[1735266103901,0.051959,96381.0,96375.0,0.04083745]
[1735266104097,0.051959,96381.0,96372.0,0.36922054]
[1735266104297,0.051959,96381.0,96373.0,0.001]
[1735266104499,0.051959,96381.0,96373.0,0.04185412]
[1735266104704,0.051959,96381.0,96377.0,0.30782956]
[1735266106197,0.051959,96381.0,96378.0,0.30782956]
[1735266107007,0.051959,96380.0,96378.0,0.30782956]
[1735266108409,0.052959,96380.0,96376.0,0.30782956]
[1735266108710,0.001,96380.0,96376.0,0.30782956]
[1735266108898,0.05196,96377.0,96369.0,0.36922054]
[1735266109099,0.4851,96379.0,96350.0,0.48997124]
[1735266109100,0.051971,96358.0,96350.0,0.48997124]
[1735266109694,0.051971,96358.0,96352.0,0.29739821]
[1735266109909,0.051971,96358.0,96352.0,0.01185399]
[1735266110215,0.051971,96358.0,96344.0,8.693e-05]
[1735266110216,0.051978,96345.0,96344.0,8.693e-05]
[1735266110402,0.051978,96345.0,96344.0,0.05266821]
[1735266110605,0.051978,96345.0,96344.0,0.04101807]
[1735266111304,0.051978,96345.0,96344.0,8.693e-05]
[1735266112710,0.051978,96345.0,96344.0,0.0119668]
[1735266112899,0.052978,96345.0,96344.0,0.0209668]
[1735266113096,0.001,96345.0,96344.0,0.0209668]
[1735266113301,0.001,96345.0,96344.0,0.0159668]
[1735266113610,0.001,96345.0,96344.0,0.0239668]
[1735266114111,0.051976,96349.0,96344.0,0.0149668]
[1735266114306,0.05197,96359.0,96344.0,0.0149668]
[1735266114709,0.2242,96360.0,96344.0,0.0149668]
[1735266115007,0.051975,96350.0,96344.0,0.0149668]
[1735266115317,0.051976,96348.0,96344.0,0.0149668]
[1735266116110,0.051976,96348.0,96344.0,0.0139668]
[1735266116416,0.051976,96348.0,96344.0,0.0159668]
[1735266116614,0.051976,96348.0,96344.0,0.0139668]
[1735266116816,0.051976,96348.0,96344.0,0.0169668]
[1735266117114,0.051976,96348.0,96344.0,0.0159668]
[1735266119207,0.051976,96348.0,96344.0,0.0139668]
[1735266119402,0.051976,96348.0,96344.0,0.0169668]
[1735266119802,0.051976,96348.0,96344.0,0.0139668]
[1735266120010,0.051976,96348.0,96344.0,0.0169668]
[1735266120312,0.051976,96348.0,96344.0,0.0199668]
[1735266120817,0.051976,96348.0,96344.0,0.0169668]
[1735266121114,0.051976,96348.0,96344.0,0.0179668]
[1735266123512,0.2323,96368.0,96344.0,0.0179668]
[1735266123915,0.051973,96354.0,96344.0,0.0179668]
[1735266124505,0.07541276,96360.0,96344.0,0.0179668]
[1735266124506,0.051973,96353.0,96344.0,0.0179668]
[1735266125416,0.051973,96353.0,96344.0,0.0139668]
[1735266125614,0.051973,96353.0,96344.0,0.0179668]
[1735266126120,0.05197,96360.0,96344.0,0.0189668]
[1735266126614,0.05197,96360.0,96345.0,0.04076864]
[1735266126814,0.001,96353.0,96346.0,0.04076864]
[1735266127207,0.001,96353.0,96347.0,0.04076864]
[1735266127718,0.001,96353.0,96348.0,0.04076864]
[1735266127923,0.001,96353.0,96345.0,0.003]
[1735266128108,0.001,96353.0,96346.0,0.04077299]
[1735266128617,0.001,96353.0,96347.0,0.04077299]
[1735266128820,0.051971,96357.0,96348.0,0.04077299]
[1735266129118,0.051971,96357.0,96345.0,0.003]
[1735266129320,0.051971,96357.0,96344.0,0.0119668]
[1735266129518,0.001,96353.0,96347.0,0.002]
[1735266129910,0.051971,96357.0,96347.0,0.002]
[1735266129911,0.051971,96357.0,96348.0,0.04080853]
[1735266130109,0.052971,96357.0,96348.0,0.008]
[1735266130515,0.052971,96357.0,96345.0,0.005]
[1735266130516,0.051971,96357.0,96345.0,0.005]
[1735266130724,0.001,96353.0,96347.0,0.009]
[1735266131112,0.001,96353.0,96348.0,0.004]
[1735266132315,0.051972,96356.0,96348.0,0.012]
[1735266132916,0.051972,96356.0,96349.0,0.04079428]
[1735266133125,0.051972,96356.0,96350.0,0.04079428]
[1735266133421,0.001,96353.0,96350.0,0.04079428]
[1735266133621,0.001,96353.0,96348.0,0.008]
[1735266133822,0.001,96353.0,96349.0,0.04088479]
[1735266134022,0.052972,96356.0,96349.0,0.04888479]
[1735266134223,0.052972,96356.0,96350.0,0.04088479]
[1735266134524,0.052972,96356.0,96351.0,0.04088479]
[1735266134922,0.052972,96356.0,96349.0,0.008]
[1735266135222,0.09346291,96375.0,96350.0,0.04090305]
[1735266135416,0.09346291,96375.0,96360.0,0.07541276]
[1735266135725,0.09346291,96375.0,96345.0,0.04090305]
[1735266135726,0.09346291,96375.0,96361.0,0.4618]
[1735266135925,0.051963,96373.0,96361.0,0.4618]
[1735266136627,0.051963,96373.0,96362.0,0.04090305]
[1735266137121,0.051963,96373.0,96363.0,0.04090305]
[1735266137425,0.051963,96373.0,96364.0,0.04090305]
[1735266137926,0.051963,96373.0,96365.0,0.04090305]
[1735266138329,0.051963,96373.0,96366.0,0.27250305]
[1735266138828,0.051963,96373.0,96367.0,0.04090305]
[1735266139215,0.051963,96373.0,96366.0,0.2316]
[1735266139216,0.051963,96373.0,96368.0,0.04090305]
[1735266139727,0.051963,96373.0,96369.0,0.04090305]
[1735266139921,0.051963,96373.0,96366.0,0.2386]
[1735266140123,0.051963,96373.0,96367.0,0.04486906]
[1735266140326,0.051963,96373.0,96367.0,0.04686906]
[1735266140528,0.051963,96373.0,96368.0,0.04086906]
[1735266140719,0.051963,96373.0,96367.0,0.006]
[1735266141427,0.051963,96373.0,96368.0,0.04085192]
[1735266141726,0.051963,96373.0,96368.0,0.04485192]
[1735266141917,0.051963,96373.0,96368.0,0.004]
[1735266142123,0.051963,96373.0,96367.0,0.004]
[1735266142426,0.051963,96373.0,96368.0,0.04084212]
[1735266142614,0.051963,96373.0,96368.0,0.04284212]
[1735266142818,0.051963,96373.0,96368.0,0.006]
[1735266143015,0.051963,96373.0,96369.0,0.04084177]
[1735266143225,0.051963,96373.0,96368.0,0.002]
[1735266143429,0.051963,96373.0,96367.0,0.006]
[1735266143632,0.051963,96373.0,96368.0,0.04083945]
[1735266144022,0.051963,96373.0,96367.0,0.006]
[1735266144528,0.051965,96369.0,96368.0,0.04087476]
[1735266145023,0.051965,96369.0,96368.0,0.004]
[1735266145629,0.051969,96362.0,96361.0,0.01125087]
[1735266145832,0.05196,96378.0,96347.0,0.4658]
[1735266145833,0.07529253,96371.0,96347.0,0.4658]
[1735266146133,0.07529253,96371.0,96348.0,0.04090334]
[1735266146134,0.051974,96352.0,96348.0,0.04090334]
[1735266146519,0.051974,96352.0,96349.0,0.04090334]
[1735266146717,0.051974,96352.0,96350.0,0.04090334]
[1735266147128,0.051974,96352.0,96351.0,0.04090334]
[1735266148731,0.051974,96352.0,96351.0,0.04490334]
[1735266149125,0.052974,96352.0,96351.0,0.04690334]
[1735266149332,0.052974,96352.0,96351.0,0.04890334]
[1735266149632,0.051974,96352.0,96351.0,0.04290334]
[1735266149834,0.051974,96352.0,96351.0,0.04790334]
[1735266151736,0.051974,96352.0,96351.0,0.007]
[1735266153021,0.051974,96352.0,96351.0,0.047987]
[1735266154327,0.051974,96352.0,96351.0,0.007]
[1735266154928,0.051974,96352.0,96351.0,0.006]
[1735266155436,0.051974,96352.0,96344.0,8.693e-05]
[1735266155738,0.051974,96352.0,96351.0,0.003]
[1735266157222,0.051974,96352.0,96351.0,0.002]
[1735266158331,0.0272,96353.0,96351.0,0.001]
[1735266158532,0.051974,96352.0,96351.0,0.002]
[1735266159334,0.051978,96345.0,96344.0,8.693e-05]
[1735266161235,0.052978,96345.0,96344.0,8.693e-05]
[1735266161639,0.051978,96345.0,96344.0,8.693e-05]
[1735266161840,0.053978,96345.0,96344.0,8.693e-05]
[1735266162143,0.051978,96345.0,96344.0,8.693e-05]
[1735266162443,0.054978,96345.0,96344.0,8.693e-05]
[1735266163732,0.055978,96345.0,96344.0,8.693e-05]
[1735266164340,0.054978,96345.0,96344.0,8.693e-05]
[1735266164646,0.055978,96345.0,96344.0,8.693e-05]
[1735266165039,0.055978,96345.0,96344.0,9.3e-07]
[1735266165436,0.059978,96345.0,96344.0,0.00100093]
[1735266165740,0.059978,96345.0,96344.0,9.3e-07]
[1735266165741,0.359978,96345.0,96344.0,9.3e-07]
[1735266166650,0.36006493,96345.0,96344.0,9.3e-07]
[1735266166844,0.35206493,96345.0,96322.0,0.01113041]
[1735266167147,0.35206493,96345.0,96316.0,0.4702]
[1735266167148,0.051993,96317.0,96316.0,0.4702]
[1735266168139,0.051993,96317.0,96316.0,0.48133041]
[1735266168742,0.052993,96317.0,96316.0,0.48733041]
[1735266170135,0.051993,96317.0,96316.0,0.48133041]
[1735266170336,0.052993,96317.0,96316.0,0.48733041]
[1735266170542,0.052993,96317.0,96316.0,0.49033041]
[1735266170742,0.052993,96317.0,96316.0,0.48433041]
[1735266170743,0.051993,96317.0,96316.0,0.48433041]
[1735266170942,0.052993,96317.0,96316.0,0.49033041]
[1735266175045,0.052993,96317.0,96316.0,0.48733041]
[1735266175253,0.052993,96317.0,96316.0,0.49033041]
[1735266176847,0.052993,96317.0,96316.0,0.48133041]
[1735266177056,0.052993,96317.0,96316.0,0.49033041]
[1735266178058,0.051993,96317.0,96316.0,0.48433041]
[1735266178242,0.052993,96317.0,96316.0,0.49033041]
[1735266178447,0.052993,96317.0,96316.0,0.48733041]
[1735266178647,0.052993,96317.0,96316.0,0.49033041]
[1735266180150,0.052993,96317.0,96316.0,0.48433041]
[1735266180355,0.052993,96317.0,96316.0,0.49033041]
[1735266180755,0.051993,96317.0,96316.0,0.48433041]
[1735266180954,0.052993,96317.0,96316.0,0.49033041]
[1735266181360,0.051993,96317.0,96316.0,0.48433041]
[1735266181560,0.051993,96317.0,96316.0,0.48933041]
[1735266181561,0.052993,96317.0,96316.0,0.48933041]
[1735266183357,0.052993,96317.0,96316.0,0.48633041]
[1735266183551,0.052993,96317.0,96316.0,0.48933041]
[1735266188154,0.05306843,96317.0,96316.0,0.008]
[1735266188856,0.051994,96315.0,96314.0,0.11983865]
[1735266189055,0.052001,96301.0,96300.0,0.43100623]
[1735266189455,0.052001,96301.0,96300.0,0.19315023]
[1735266189682,0.35207911,96301.0,96300.0,2.3e-07]
[1735266189858,0.35207911,96301.0,96293.0,0.13711947]
[1735266190163,0.35207911,96301.0,96293.0,4.7e-07]
[1735266190164,0.052005,96294.0,96293.0,4.7e-07]
[1735266190461,0.052006,96292.0,96288.0,0.30930598]
[1735266190951,0.352006,96292.0,96288.0,0.30930598]
[1735266191352,0.352006,96292.0,96277.0,0.4653]
[1735266191864,0.352006,96292.0,96290.0,0.00312896]
[1735266192270,0.567406,96292.0,96290.0,0.00312896]
[1735266192767,0.052006,96292.0,96290.0,0.00412896]
[1735266193162,0.052006,96292.0,96290.0,0.00112896]
[1735266193368,0.053006,96292.0,96290.0,0.00012896]
[1735266193568,0.054006,96292.0,96290.0,0.00012896]
[1735266193769,0.055006,96292.0,96290.0,0.00012896]
[1735266194274,0.054006,96292.0,96290.0,0.00112896]
[1735266194961,0.052006,96292.0,96290.0,0.00112896]
[1735266195670,0.052006,96292.0,96290.0,0.00012896]
[1735266195979,0.054006,96292.0,96290.0,0.00012896]
[1735266196462,0.058006,96292.0,96290.0,0.00012896]
[1735266197064,0.054006,96292.0,96290.0,0.00012896]
[1735266197269,0.058006,96292.0,96290.0,0.00012896]
[1735266198373,0.058006,96292.0,96277.0,0.4653]
[1735266198674,0.052014,96278.0,96277.0,0.4653]
[1735266199267,0.052014,96278.0,96277.0,0.2379]
[1735266199967,0.052014,96278.0,96277.0,0.2389]
[1735266200966,0.052014,96278.0,96277.0,0.2379]
[1735266203686,0.052014,96278.0,96277.0,0.2389]
[1735266205077,0.052014,96278.0,96239.0,9.491e-05]
[1735266205078,0.052026,96263.0,96239.0,9.491e-05]
[1735266205289,0.052032,96248.0,96241.0,0.2446]
[1735266205675,0.0521052,96248.0,96241.0,0.2446]
[1735266206684,0.0531052,96248.0,96247.0,0.00655808]
[1735266206871,0.0531052,96248.0,96247.0,0.00855808]
[1735266207076,0.0541052,96248.0,96247.0,0.00855808]
[1735266207271,0.0541052,96248.0,96241.0,0.2446]
[1735266207574,0.052035,96242.0,96241.0,0.2446]
[1735266207778,0.052036,96240.0,96239.0,9.491e-05]
[1735266209282,0.052036,96240.0,96239.0,0.00109491]
[1735266210074,0.053036,96240.0,96239.0,9.491e-05]
[1735266210281,0.056036,96240.0,96239.0,9.491e-05]
[1735266211471,0.055036,96240.0,96239.0,9.491e-05]
[1735266211681,0.057036,96240.0,96239.0,9.491e-05]
[1735266212385,0.056036,96240.0,96239.0,9.491e-05]
[1735266212575,0.054036,96240.0,96239.0,9.491e-05]
[1735266212785,0.052039,96235.0,96234.0,0.07468033]
[1735266213085,0.052039,96235.0,96201.0,0.4567]
[1735266213086,0.052037,96239.0,96201.0,0.4567]
[1735266213275,0.05205,96216.0,96201.0,0.467886]
[1735266213671,0.07547131,96230.0,96201.0,0.467886]
[1735266213884,0.052043,96228.0,96210.0,0.07547131]
[1735266214486,0.052043,96228.0,96204.0,0.052056]
[1735266214683,0.052043,96228.0,96204.0,0.352056]
[1735266214886,0.052043,96228.0,96204.0,0.3]
[1735266215076,0.052043,96228.0,96206.0,0.052055]
[1735266215273,0.052042,96230.0,96210.0,0.07547131]
[1735266215478,0.052043,96229.0,96210.0,0.07547131]
[1735266215778,0.052043,96229.0,96206.0,0.052055]
[1735266215986,0.001,96228.0,96210.0,0.004]
[1735266216182,0.053044,96228.0,96210.0,0.004]
[1735266216384,0.052044,96227.0,96210.0,0.004]
[1735266217578,0.052044,96227.0,96210.0,0.07947131]
[1735266217790,0.052044,96227.0,96210.0,0.08047131]
[1735266218688,0.054044,96227.0,96210.0,0.08047131]
[1735266219088,0.09302104,96240.0,96233.0,0.05204]
[1735266219284,0.00052001,96275.0,96234.0,0.4532]
[1735266219484,0.07547131,96270.0,96240.0,0.07547131]
[1735266219879,0.052027,96255.0,96240.0,0.07547131]
[1735266220178,0.05202,96267.0,96240.0,0.07547131]
[1735266220380,0.00011787,96254.0,96240.0,0.07547131]
[1735266220688,0.052031,96248.0,96234.0,0.4532]
[1735266220883,0.00011787,96254.0,96234.0,0.4532]
[1735266220884,0.05203,96249.0,96234.0,0.4532]
[1735266221084,0.052034,96242.0,96234.0,0.4532]
[1735266221582,0.052034,96241.0,96234.0,0.4532]
[1735266221783,0.052034,96241.0,96240.0,0.001]
[1735266222289,0.052035,96239.0,96234.0,0.4704351]
[1735266222484,0.052037,96237.0,96235.0,0.2302]
[1735266223584,0.053037,96237.0,96235.0,0.2392]
[1735266224985,0.053037,96237.0,96235.0,0.2352]
[1735266225184,0.053037,96237.0,96235.0,0.2442]
[1735266226387,0.001,96237.0,96235.0,0.2442]
[1735266226782,0.001,96237.0,96235.0,0.2432]
[1735266227482,0.001,96237.0,96235.0,0.2382]
[1735266227798,0.00011787,96254.0,96235.0,0.2432]
[1735266227987,0.00011787,96254.0,96240.0,0.07547131]
[1735266228987,0.00111787,96254.0,96240.0,0.07547131]
[1735266229189,0.052021,96267.0,96240.0,0.45094262]
[1735266229490,0.052021,96267.0,96257.0,0.07547131]
[1735266229690,0.052021,96267.0,96258.0,0.2411]
[1735266230295,0.00011973,96266.0,96258.0,0.2411]
[1735266230988,0.00011973,96266.0,96259.0,0.2404]
[1735266231989,0.00111973,96266.0,96259.0,0.2404]
[1735266232391,0.00011973,96266.0,96260.0,0.234]
[1735266232584,0.00111973,96266.0,96260.0,0.234]
[1735266233993,0.00111973,96266.0,96263.0,5.172e-05]
[1735266234486,0.00311973,96266.0,96263.0,5.172e-05]
[1735266235091,0.00411973,96266.0,96263.0,5.172e-05]
[1735266236284,0.052012,96283.0,96263.0,5.172e-05]
[1735266236587,0.052012,96283.0,96270.0,0.07547131]
[1735266237587,0.052012,96283.0,96270.0,0.07647131]
[1735266238095,0.052012,96283.0,96270.0,0.07547131]
[1735266238297,0.052012,96283.0,96270.0,0.003]
[1735266239488,0.052013,96281.0,96270.0,0.003]
[1735266239993,0.052013,96281.0,96270.0,0.01570326]
[1735266240181,0.052013,96281.0,96270.0,0.005]
[1735266240587,0.052013,96281.0,96270.0,0.08047131]
[1735266241096,0.052013,96281.0,96270.0,0.07747131]
[1735266241296,0.052013,96281.0,96270.0,0.08147131]
[1735266242195,0.228,96287.0,96270.0,0.006]
[1735266242397,0.228,96287.0,96270.0,0.08147131]
[1735266242801,0.28001,96287.0,96270.0,0.08147131]
[1735266243483,0.052011,96284.0,96270.0,0.08147131]
[1735266243693,0.052011,96284.0,96270.0,0.07747131]
[1735266243895,0.052011,96284.0,96270.0,0.08147131]
[1735266244502,0.07547131,96280.0,96270.0,0.006]
[1735266244799,0.052018,96271.0,96270.0,0.002]
[1735266245093,0.052018,96271.0,96270.0,0.006]
[1735266246589,0.052018,96271.0,96270.0,0.004]
[1735266246801,0.052018,96271.0,96270.0,0.006]
[1735266247392,0.052018,96271.0,96270.0,0.004]
[1735266247600,0.052018,96271.0,96270.0,0.005]
[1735266247799,0.052018,96271.0,96270.0,0.001]
[1735266247990,0.01087774,96284.0,96273.0,0.052016]
[1735266248186,0.052004,96297.0,96275.0,0.052015]
[1735266248499,0.00155903,96302.0,96287.0,0.07547131]
[1735266248702,0.00155903,96302.0,96293.0,0.052005]
[1735266249193,0.00155903,96302.0,96293.0,0.3]
[1735266249393,0.00155903,96302.0,96298.0,0.052003]
[1735266249589,0.00155903,96302.0,96299.0,0.2357]
[1735266249991,0.00155903,96302.0,96299.0,0.60641059]
[1735266250591,0.00255903,96302.0,96299.0,0.60641059]
[1735266250995,0.00255903,96302.0,96300.0,0.56626048]
[1735266252603,0.00255903,96302.0,96301.0,0.19554989]
[1735266253805,0.00255903,96302.0,96301.0,0.20454989]
[1735266254399,0.00355903,96302.0,96301.0,0.20454989]
[1735266255605,0.00355903,96302.0,96301.0,0.20954989]
[1735266256298,0.002,96302.0,96301.0,0.20954989]
[1735266256499,0.051991,96320.0,96301.0,0.20954989]
[1735266257508,0.051991,96320.0,96301.0,0.20454989]
[1735266257709,0.052991,96320.0,96301.0,0.20954989]
[1735266257905,0.053991,96320.0,96301.0,0.20954989]
[1735266258110,0.053991,96320.0,96313.0,0.18460023]
[1735266258498,0.002,96320.0,96313.0,0.18460023]
[1735266259008,0.051994,96315.0,96313.0,0.18460023]
[1735266260207,0.001,96320.0,96313.0,0.18960023]
[1735266260406,0.051989,96324.0,96313.0,0.19260023]
[1735266261002,0.051992,96319.0,96313.0,0.19260023]
[1735266261204,0.2406,96329.0,96313.0,0.19260023]
[1735266261403,0.051994,96316.0,96313.0,0.19260023]
[1735266261699,0.051994,96314.0,96313.0,0.19260023]
[1735266262707,0.051989,96324.0,96313.0,0.18760023]
[1735266262900,0.051989,96324.0,96313.0,0.19260023]
[1735266263303,0.051989,96324.0,96313.0,0.18760023]
[1735266263506,0.051989,96324.0,96313.0,0.19060023]
[1735266263908,0.051989,96324.0,96313.0,0.18760023]
[1735266264104,0.051989,96324.0,96313.0,0.19160023]
[1735266264817,0.2406,96329.0,96313.0,0.19260023]
[1735266265007,0.051991,96320.0,96313.0,0.19260023]
[1735266265605,0.051991,96320.0,96313.0,0.18760023]
[1735266265807,0.051991,96320.0,96313.0,0.19260023]
[1735266266511,0.051988,96327.0,96313.0,0.18960023]
[1735266266716,0.051988,96327.0,96313.0,0.19260023]
[1735266267309,0.051988,96327.0,96313.0,0.18960023]
[1735266267605,0.051988,96327.0,96313.0,0.19260023]
[1735266267812,0.051988,96326.0,96313.0,0.19260023]
[1735266268303,0.051988,96326.0,96315.0,0.18464873]
[1735266268502,0.2406,96329.0,96315.0,0.18464873]
[1735266268711,0.051989,96325.0,96315.0,0.18464873]
[1735266269107,0.051989,96324.0,96315.0,0.18464873]
[1735266269518,0.051989,96324.0,96315.0,0.18864873]
[1735266269723,0.051992,96320.0,96315.0,0.18864873]
[1735266269914,0.2406,96329.0,96315.0,0.18864873]
[1735266270109,0.00060001,96356.0,96319.0,0.07547131]
[1735266270420,0.2256,96351.0,96330.0,0.07547131]
[1735266270614,0.2256,96351.0,96334.0,0.051984]
[1735266270811,0.277575,96351.0,96334.0,0.051984]
[1735266271507,0.2256,96351.0,96334.0,0.051984]
[1735266271712,0.051975,96350.0,96334.0,0.051984]
[1735266271916,0.00155783,96359.0,96347.0,0.051977]
[1735266272214,0.00155783,96359.0,96348.0,0.2227]
[1735266273012,0.004,96350.0,96348.0,0.2227]
[1735266273513,0.002,96351.0,96348.0,0.2227]
[1735266273917,0.051972,96357.0,96348.0,0.2227]
[1735266274112,0.051972,96357.0,96349.0,0.223]
[1735266275122,0.051972,96357.0,96352.0,0.18464873]
[1735266276021,0.055972,96357.0,96352.0,0.18464873]
[1735266276206,0.055972,96357.0,96353.0,0.18464873]
[1735266276517,0.00155783,96359.0,96353.0,0.18464873]
[1735266276518,0.051973,96355.0,96353.0,0.18464873]
[1735266277411,0.006,96357.0,96348.0,0.18464873]
[1735266277412,0.051974,96353.0,96348.0,0.18464873]
[1735266277721,0.051975,96351.0,96348.0,0.18464873]
[1735266278514,0.051975,96351.0,96345.0,0.18464873]
[1735266279208,0.054975,96351.0,96345.0,0.18464873]
[1735266279411,0.051975,96350.0,96345.0,0.18464873]
[1735266279819,0.051975,96350.0,96347.0,0.24608647]
[1735266281024,0.052975,96350.0,96348.0,0.24608647]
[1735266281222,0.052975,96350.0,96337.0,0.30788739]
[1735266281223,0.051982,96338.0,96337.0,0.30788739]
[1735266282318,0.01100737,96347.0,96333.0,0.00010314]
[1735266282519,0.051984,96334.0,96333.0,0.00010314]
[1735266284020,0.051984,96334.0,96333.0,0.00210314]
[1735266284917,0.051984,96334.0,96333.0,0.00510314]
[1735266285924,0.051984,96334.0,96333.0,0.00210314]
[1735266286225,0.051984,96334.0,96333.0,0.00510314]
[1735266296736,0.051984,96334.0,96333.0,0.00310314]
[1735266297736,0.051984,96334.0,96333.0,0.00010314]
[1735266299138,0.051984,96334.0,96333.0,0.00310314]
[1735266299339,0.051984,96334.0,96333.0,0.00510314]
[1735266302343,0.051984,96334.0,96333.0,0.50714837]
[1735266303138,0.051984,96334.0,96333.0,0.72024837]
[1735266303338,0.4278,96358.0,96333.0,0.72024837]
[1735266303540,0.051978,96345.0,96334.0,0.4369]
[1735266303843,0.15490762,96371.0,96335.0,0.04109149]
[1735266304146,0.15490762,96371.0,96334.0,0.55236059]
[1735266304147,0.17601584,96364.0,96340.0,0.07547131]
[1735266304444,0.17601584,96364.0,96350.0,0.07547131]
[1735266304445,0.051969,96362.0,96350.0,0.07547131]
[1735266304942,0.051969,96362.0,96351.0,0.04109149]
[1735266305139,0.051969,96362.0,96357.0,0.36938543]
[1735266305338,0.051969,96362.0,96358.0,0.6484]
[1735266305846,0.052969,96362.0,96358.0,0.6484]
[1735266306545,0.053969,96362.0,96359.0,0.19415784]
[1735266307641,0.059969,96362.0,96359.0,0.19415784]
[1735266307840,0.059969,96362.0,96360.0,0.19415784]
[1735266308140,0.054969,96362.0,96360.0,0.19415784]
[1735266308343,0.055969,96362.0,96360.0,0.19415784]
[1735266309140,0.055969,96362.0,96358.0,0.64892]
[1735266309141,0.055969,96362.0,96361.0,0.19415784]
[1735266310836,0.052969,96362.0,96361.0,0.19415784]
[1735266311038,0.055969,96362.0,96361.0,0.19415784]
[1735266311842,0.05197,96361.0,96358.0,0.95739855]
[1735266312051,0.05197,96361.0,96358.0,0.95687855]
[1735266312549,0.05197,96360.0,96358.0,0.96776047]
[1735266313247,0.05197,96360.0,96359.0,0.19358965]
[1735266314245,0.05397,96360.0,96359.0,0.19358965]